[Event "Titled Tuesday Blitz August 1 Late 2023"]
[White "Miguelitro69"]
[Black "2good4u734"]
[WhiteElo "2274"]
[BlackElo "2294"]
[Result "0-1"]
[Round "11"]
[TimeControl "180+1"]
[Date "2023.08.01"]
[WhiteClock "0:00:52"]
[BlackClock "0:00:08"]
[Board "107"]

1. e4 {[%clk 0:02:59]}  b6 {[%clk 0:01:11]} 2. d4 {[%clk 0:02:57]}  Bb7 {[%clk 0:01:11]} 3. Nc3 {[%clk 0:02:58]}  e6 {[%clk 0:01:11]} 4. Bd3 {[%clk 0:02:58]}  Nf6 {[%clk 0:01:11]} 5. Nf3 {[%clk 0:02:57]}  Bb4 {[%clk 0:01:12]} 6. Qe2 {[%clk 0:02:57]}  d5 {[%clk 0:01:12]} 7. exd5 {[%clk 0:02:54]}  Nxd5 {[%clk 0:01:12]} 8. Bd2 {[%clk 0:02:54]}  Bxc3 {[%clk 0:01:11]} 9. bxc3 {[%clk 0:02:54]}  Qd6 {[%clk 0:01:08]} 10. O-O {[%clk 0:02:52]}  Nf4 {[%clk 0:01:08]} 11. Qe3 {[%clk 0:02:47]}  Nxd3 {[%clk 0:01:06]} 12. cxd3 {[%clk 0:02:46]}  Nd7 {[%clk 0:01:06]} 13. c4 {[%clk 0:02:32]}  O-O {[%clk 0:01:05]} 14. Bc3 {[%clk 0:02:30]}  Rad8 {[%clk 0:00:54]} 15. Rab1 {[%clk 0:02:26]}  a5 {[%clk 0:00:53]} 16. Rfd1 {[%clk 0:02:21]}  Qa3 {[%clk 0:00:48]} 17. Bb2 {[%clk 0:02:13]}  Qxa2 {[%clk 0:00:48]} 18. Qg5 {[%clk 0:02:10]}  Bxf3 {[%clk 0:00:44]} 19. gxf3 {[%clk 0:02:10]}  f6 {[%clk 0:00:42]} 20. Qg4 {[%clk 0:02:09]}  Rfe8 {[%clk 0:00:42]} 21. Kh1 {[%clk 0:02:08]}  Qa4 {[%clk 0:00:39]} 22. Rg1 {[%clk 0:02:07]}  Re7 {[%clk 0:00:38]} 23. Rg3 {[%clk 0:02:06]}  Qc6 {[%clk 0:00:37]} 24. Rbg1 {[%clk 0:02:04]}  Kh8 {[%clk 0:00:27]} 25. Rh3 {[%clk 0:02:02]}  Nf8 {[%clk 0:00:26]} 26. Qg2 {[%clk 0:01:38]}  Rf7 {[%clk 0:00:17]} 27. Rg3 {[%clk 0:01:37]}  Ng6 {[%clk 0:00:17]} 28. Rg4 {[%clk 0:01:32]}  f5 {[%clk 0:00:16]} 29. d5 {[%clk 0:01:19]}  exd5 {[%clk 0:00:15]} 30. Rg5 {[%clk 0:01:16]}  dxc4 {[%clk 0:00:13]} 31. h4 {[%clk 0:01:10]}  c3 {[%clk 0:00:08]} 32. h5 {[%clk 0:01:09]}  Nf4 {[%clk 0:00:09]} 33. Qg3 {[%clk 0:01:04]}  Ne2 {[%clk 0:00:09]} 34. Qe5 {[%clk 0:00:58]}  Qxf3+ {[%clk 0:00:09]} 35. Kh2 {[%clk 0:00:57]}  Nxg1 {[%clk 0:00:07]} 36. Bxc3 {[%clk 0:00:55]}  Qxf2+ {[%clk 0:00:07]} 37. Rg2 {[%clk 0:00:54]}  Nf3+ {[%clk 0:00:07]} 38. Kh3 {[%clk 0:00:52]}  Qh4# {[%clk 0:00:08]} 0-1


[Site "https://www.chess.com"]

[Event "Titled Tuesday Blitz August 1 Late 2023"]
[White "Simonovic, Miroslav"]
[Black "Broca Jimenez, Fernando"]
[WhiteFideId "919152"]
[BlackFideId "5104742"]
[WhiteElo "2287"]
[BlackElo "2210"]
[Result "0-1"]
[Round "11"]
[TimeControl "180+1"]
[Date "2023.08.01"]
[WhiteClock "0:00:00"]
[BlackClock "0:00:30"]
[Board "108"]

1. d4 {[%clk 0:02:57]}  Nf6 {[%clk 0:02:58]} 2. Bg5 {[%clk 0:02:58]}  g6 {[%clk 0:02:59]} 3. Bxf6 {[%clk 0:02:58]}  exf6 {[%clk 0:02:59]} 4. c4 {[%clk 0:02:58]}  Bg7 {[%clk 0:03:00]} 5. Nc3 {[%clk 0:02:59]}  f5 {[%clk 0:03:00]} 6. e3 {[%clk 0:02:59]}  O-O {[%clk 0:03:01]} 7. g3 {[%clk 0:02:59]}  c6 {[%clk 0:03:02]} 8. Nge2 {[%clk 0:02:59]}  Na6 {[%clk 0:02:59]} 9. Bg2 {[%clk 0:02:58]}  Nc7 {[%clk 0:03:00]} 10. O-O {[%clk 0:02:57]}  d5 {[%clk 0:02:59]} 11. cxd5 {[%clk 0:02:58]}  Nxd5 {[%clk 0:02:58]} 12. Nxd5 {[%clk 0:02:58]}  cxd5 {[%clk 0:02:58]} 13. Nc3 {[%clk 0:02:58]}  Be6 {[%clk 0:02:57]} 14. Qf3 {[%clk 0:02:53]}  Rc8 {[%clk 0:02:50]} 15. Nxd5 {[%clk 0:02:52]}  Rc2 {[%clk 0:02:50]} 16. b4 {[%clk 0:02:47]}  Qd6 {[%clk 0:02:44]} 17. a3 {[%clk 0:02:42]}  Rfc8 {[%clk 0:02:40]} 18. Nf4 {[%clk 0:02:41]}  R8c7 {[%clk 0:02:25]} 19. h4 {[%clk 0:02:39]}  Bd7 {[%clk 0:02:19]} 20. Qd5 {[%clk 0:02:31]}  Qe7 {[%clk 0:02:11]} 21. Qa5 {[%clk 0:02:11]}  b6 {[%clk 0:02:06]} 22. Qa6 {[%clk 0:02:11]}  Bc8 {[%clk 0:01:32]} 23. Qd3 {[%clk 0:01:56]}  Qd6 {[%clk 0:01:22]} 24. Bd5 {[%clk 0:01:39]}  R7c3 {[%clk 0:01:17]} 25. Qb5 {[%clk 0:01:38]}  Bd7 {[%clk 0:01:15]} 26. Qa6 {[%clk 0:01:37]}  Rc7 {[%clk 0:01:13]} 27. Bb3 {[%clk 0:01:13]}  Bh6 {[%clk 0:01:12]} 28. Bxc2 {[%clk 0:01:05]}  Bxf4 {[%clk 0:01:08]} 29. exf4 {[%clk 0:00:58]}  Rxc2 {[%clk 0:01:07]} 30. Rac1 {[%clk 0:00:46]}  Rd2 {[%clk 0:01:04]} 31. Rfd1 {[%clk 0:00:43]}  Ra2 {[%clk 0:01:03]} 32. d5 {[%clk 0:00:35]}  Qe7 {[%clk 0:00:56]} 33. Qc4 {[%clk 0:00:19]}  Rb2 {[%clk 0:00:51]} 34. Rb1 {[%clk 0:00:17]}  Re2 {[%clk 0:00:50]} 35. Qd4 {[%clk 0:00:14]}  Ba4 {[%clk 0:00:45]} 36. Rd2 {[%clk 0:00:12]}  Re4 {[%clk 0:00:36]} 37. Qd3 {[%clk 0:00:11]}  a6 {[%clk 0:00:33]} 38. b5 {[%clk 0:00:10]}  Bxb5 {[%clk 0:00:32]} 39. Rxb5 {[%clk 0:00:10]}  axb5 {[%clk 0:00:33]} 40. Qxb5 {[%clk 0:00:10]}  Re1+ {[%clk 0:00:32]} 41. Kh2 {[%clk 0:00:10]}  Qe4 {[%clk 0:00:31]} 42. Qe8+ {[%clk 0:00:00]}  Qxe8 {[%clk 0:00:30]} 0-1


[Site "https://www.chess.com"]

[Event "Titled Tuesday Blitz August 1 Late 2023"]
[White "Jahnz, Fabian"]
[Black "Li, Eric"]
[WhiteFideId "4653300"]
[BlackFideId "30939941"]
[WhiteElo "2291"]
[BlackElo "2395"]
[Result "0-1"]
[Round "11"]
[TimeControl "180+1"]
[Date "2023.08.01"]
[WhiteClock "0:00:00"]
[BlackClock "0:00:06"]
[Board "109"]

1. e4 {[%clk 0:02:07]}  c5 {[%clk 0:02:57]} 2. Nf3 {[%clk 0:02:07]}  d6 {[%clk 0:02:55]} 3. Bb5+ {[%clk 0:02:06]}  Nd7 {[%clk 0:02:55]} 4. d4 {[%clk 0:02:06]}  cxd4 {[%clk 0:02:54]} 5. Qxd4 {[%clk 0:02:07]}  a6 {[%clk 0:02:54]} 6. Bxd7+ {[%clk 0:02:07]}  Bxd7 {[%clk 0:02:53]} 7. O-O {[%clk 0:02:08]}  Nf6 {[%clk 0:02:50]} 8. c4 {[%clk 0:02:08]}  g6 {[%clk 0:02:48]} 9. Nc3 {[%clk 0:02:08]}  Bg7 {[%clk 0:02:49]} 10. Qd3 {[%clk 0:02:09]}  O-O {[%clk 0:02:45]} 11. h3 {[%clk 0:02:10]}  Rc8 {[%clk 0:02:42]} 12. Be3 {[%clk 0:02:10]}  Be6 {[%clk 0:02:40]} 13. b3 {[%clk 0:02:09]}  Nd7 {[%clk 0:02:39]} 14. Rac1 {[%clk 0:02:09]}  f5 {[%clk 0:02:36]} 15. Bd4 {[%clk 0:02:05]}  fxe4 {[%clk 0:02:25]} 16. Nxe4 {[%clk 0:02:04]}  Bf5 {[%clk 0:02:20]} 17. Bxg7 {[%clk 0:02:03]}  Kxg7 {[%clk 0:02:19]} 18. Qc3+ {[%clk 0:02:01]}  Kg8 {[%clk 0:02:16]} 19. Rfe1 {[%clk 0:01:59]}  Bxe4 {[%clk 0:02:12]} 20. Rxe4 {[%clk 0:02:00]}  e5 {[%clk 0:02:12]} 21. Rd1 {[%clk 0:02:00]}  Qe7 {[%clk 0:02:09]} 22. Qd2 {[%clk 0:01:56]}  Nf6 {[%clk 0:02:06]} 23. Re3 {[%clk 0:01:56]}  Rcd8 {[%clk 0:02:04]} 24. Rd3 {[%clk 0:01:56]}  e4 {[%clk 0:02:02]} 25. Re3 {[%clk 0:01:55]}  Qg7 {[%clk 0:01:59]} 26. Nd4 {[%clk 0:01:54]}  Rfe8 {[%clk 0:01:55]} 27. Rde1 {[%clk 0:01:52]}  Re5 {[%clk 0:01:42]} 28. Nf3 {[%clk 0:01:40]}  Re7 {[%clk 0:01:32]} 29. Ng5 {[%clk 0:01:35]}  Qh6 {[%clk 0:01:30]} 30. Nxe4 {[%clk 0:01:25]}  Rxe4 {[%clk 0:01:27]} 31. Qa5 {[%clk 0:01:14]}  Ree8 {[%clk 0:01:16]} 32. Rxe8+ {[%clk 0:01:15]}  Rxe8 {[%clk 0:01:17]} 33. Rxe8+ {[%clk 0:01:15]}  Nxe8 {[%clk 0:01:18]} 34. Qd8 {[%clk 0:01:13]}  Qf8 {[%clk 0:01:13]} 35. b4 {[%clk 0:01:12]}  Qf7 {[%clk 0:01:11]} 36. c5 {[%clk 0:01:11]}  dxc5 {[%clk 0:01:11]} 37. bxc5 {[%clk 0:01:12]}  Qe6 {[%clk 0:01:09]} 38. g3 {[%clk 0:01:08]}  Kf7 {[%clk 0:01:06]} 39. Qb8 {[%clk 0:01:07]}  Qc6 {[%clk 0:01:05]} 40. Qf4+ {[%clk 0:01:05]}  Nf6 {[%clk 0:01:06]} 41. Qc4+ {[%clk 0:01:02]}  Qd5 {[%clk 0:01:03]} 42. Qb4 {[%clk 0:01:01]}  Nd7 {[%clk 0:01:03]} 43. Qf4+ {[%clk 0:00:56]}  Kg7 {[%clk 0:01:02]} 44. Qc7 {[%clk 0:00:50]}  Qc6 {[%clk 0:00:59]} 45. Qd8 {[%clk 0:00:43]}  Nxc5 {[%clk 0:00:55]} 46. Qd4+ {[%clk 0:00:43]}  Kf7 {[%clk 0:00:53]} 47. Qf4+ {[%clk 0:00:42]}  Ke8 {[%clk 0:00:52]} 48. Qe5+ {[%clk 0:00:41]}  Ne6 {[%clk 0:00:51]} 49. Qh8+ {[%clk 0:00:41]}  Nf8 {[%clk 0:00:50]} 50. Qe5+ {[%clk 0:00:41]}  Kd7 {[%clk 0:00:47]} 51. Qg7+ {[%clk 0:00:40]}  Ke8 {[%clk 0:00:43]} 52. Qe5+ {[%clk 0:00:40]}  Kf7 {[%clk 0:00:41]} 53. Qf4+ {[%clk 0:00:37]}  Kg8 {[%clk 0:00:39]} 54. h4 {[%clk 0:00:35]}  Qd7 {[%clk 0:00:35]} 55. h5 {[%clk 0:00:32]}  Qd1+ {[%clk 0:00:24]} 56. Kg2 {[%clk 0:00:29]}  Qxh5 {[%clk 0:00:25]} 57. Qc4+ {[%clk 0:00:27]}  Kg7 {[%clk 0:00:25]} 58. Qc7+ {[%clk 0:00:27]}  Kh6 {[%clk 0:00:22]} 59. Qxb7 {[%clk 0:00:26]}  Qb5 {[%clk 0:00:20]} 60. Qe7 {[%clk 0:00:20]}  Qd5+ {[%clk 0:00:17]} 61. Kg1 {[%clk 0:00:19]}  Ne6 {[%clk 0:00:17]} 62. Qh4+ {[%clk 0:00:19]}  Kg7 {[%clk 0:00:15]} 63. Qe7+ {[%clk 0:00:19]}  Kg8 {[%clk 0:00:12]} 64. Qe8+ {[%clk 0:00:19]}  Nf8 {[%clk 0:00:12]} 65. Qa4 {[%clk 0:00:16]}  Qe6 {[%clk 0:00:10]} 66. Qa5 {[%clk 0:00:15]}  h5 {[%clk 0:00:09]} 67. a3 {[%clk 0:00:14]}  Qc4 {[%clk 0:00:05]} 68. a4 {[%clk 0:00:10]}  Kf7 {[%clk 0:00:02]} 69. Qb6 {[%clk 0:00:06]}  Ne6 {[%clk 0:00:03]} 70. Qb7+ {[%clk 0:00:06]}  Kf6 {[%clk 0:00:03]} 71. a5 {[%clk 0:00:05]}  Qc1+ {[%clk 0:00:02]} 72. Kg2 {[%clk 0:00:05]}  Qc4 {[%clk 0:00:03]} 73. Qb8 {[%clk 0:00:04]}  Qd5+ {[%clk 0:00:03]} 74. Kg1 {[%clk 0:00:04]}  Qxa5 {[%clk 0:00:03]} 75. Qh8+ {[%clk 0:00:05]}  Kf7 {[%clk 0:00:02]} 76. Qh7+ {[%clk 0:00:05]}  Ng7 {[%clk 0:00:03]} 77. Qh8 {[%clk 0:00:05]}  Qa1+ {[%clk 0:00:04]} 78. Kg2 {[%clk 0:00:05]}  Qf6 {[%clk 0:00:05]} 79. Qb8 {[%clk 0:00:05]}  Qc6+ {[%clk 0:00:05]} 80. Kg1 {[%clk 0:00:05]}  Ne6 {[%clk 0:00:06]} 81. Qa7+ {[%clk 0:00:05]}  Kf6 {[%clk 0:00:06]} 82. Qe3 {[%clk 0:00:06]}  Qb5 {[%clk 0:00:05]} 83. Qd2 {[%clk 0:00:05]}  a5 {[%clk 0:00:06]} 84. Qc3+ {[%clk 0:00:06]}  Qe5 {[%clk 0:00:06]} 85. Qa3 {[%clk 0:00:06]}  Qc5 {[%clk 0:00:06]} 86. Qf3+ {[%clk 0:00:06]}  Ke7 {[%clk 0:00:06]} 87. Qb7+ {[%clk 0:00:06]}  Qc7 {[%clk 0:00:06]} 88. Qf3 {[%clk 0:00:06]}  Qa7 {[%clk 0:00:07]} 89. Qa3+ {[%clk 0:00:05]}  Kf7 {[%clk 0:00:06]} 90. Qa4 {[%clk 0:00:06]}  Nc5 {[%clk 0:00:06]} 91. Qc4+ {[%clk 0:00:04]}  Kg7 {[%clk 0:00:07]} 92. Qd4+ {[%clk 0:00:04]}  Kh7 {[%clk 0:00:07]} 93. g4 {[%clk 0:00:03]}  hxg4 {[%clk 0:00:07]} 94. Qxg4 {[%clk 0:00:03]}  a4 {[%clk 0:00:08]} 95. Qh4+ {[%clk 0:00:03]}  Kg8 {[%clk 0:00:08]} 96. Qg5 {[%clk 0:00:03]}  Qb6 {[%clk 0:00:07]} 97. Qd5+ {[%clk 0:00:02]}  Ne6 {[%clk 0:00:06]} 98. Qe5 {[%clk 0:00:02]}  Qa6 {[%clk 0:00:06]} 99. Qd5 {[%clk 0:00:02]}  a3 {[%clk 0:00:06]} 100. Qd4 {[%clk 0:00:00]}  Nxd4 {[%clk 0:00:06]} 0-1


[Site "https://www.chess.com"]